{"text_format":"1","workbook":"xlsx","n_sheets":2,"sheets":["Fragebogen","Fragen"],"not_rendered":{"charts":0,"images":1,"macros":0,"external_links":0,"defined_names":5,"comments":1,"pivot_tables":0},"unopened":[],"bounds":{"document_bytes":16777216,"sheet_cells":100000,"rows_first":2000,"rows_last":500,"rows_between":2000,"halvings":0,"cell_chars":16384,"cell_head_chars":4096},"cells_cut":0,"cells_raw":0,"read":"whole","date_system":"1900"}

{"sheet":"Fragebogen","index":0,"n_rows":75,"n_cols":2,"rows_kept":75,"cut":false,"hidden":true,"merged":[]}
[1,"In wieviele Teile kann man ein Fenster teilen?"]
[null,2]
["r",4]
[null,16]
[null,"Ein Fenster kann man nicht teilen"]
[2,"Was kann man nicht mit der Excel-Tabelle drucken?"]
[null,"Zeilen- und Spaltenköpfe"]
[null,"Kommentare"]
["r","Statusleiste"]
[null,"Zeilen- und Spaltenüberschriften"]
[3,"Wann beginnt für Excel die Zeitrechnung?"]
["r","00.01.1900"]
[null,"01.01.1950"]
[null,"Mit Christi Geburt"]
[null,"Excel kann nicht mit Zeiten rechnen"]
[4,"Welchen maximalen Zoomwert kann man für Excel-Tabellen einstellen? "]
[null,100]
[null,200]
["r",400]
[null,1000]
[5,"Wie führe ich einen Zeilenumbruch innerhalb einer Zelle durch?"]
[null,"Mit Tastenkombination Strg+Alt"]
[null,"Mit Tastenkombination Shift+Alt"]
["r","Mit Tastenkombination Eingabe-Taste+Alt"]
[null,"Mit Tastenkombination Strg+Eingabe-Taste"]
[6,"Welche Zahlenformat-Kategorie gibt es nicht?"]
[null,"Benutzerdefiniert"]
[null,"Buchhaltung"]
["r","Rechnungswesen"]
[null,"Text"]
[7,"Zeile1 und SpalteA eines Fensters sollen fixiert werden. Wie legen Sie die Fensterfixierung fest?"]
[null,"Zelle A1 markieren"]
["r","Zelle B2 markieren"]
[null,"Mehrfachmarkierung 1. Zeile und 1. Spalte"]
[null,"Extras - Optionen - Fensterfixierung festlegen"]
[8,"Wieviele Tabellenblätter kann eine Arbeitsmappe maximal haben? "]
[null,3]
[null,10]
[null,256]
["r","Beliebig viele, abhängig von der Größe des Arbeitsspeichers"]
[9,"Welche Spaltenbezeichnung hat die letzte Spalte einer Tabelle?"]
[null,"IV"]
["r","XFD"]
[null,"ZZ"]
[null,"ZZZ"]
[10,"Wieviele Zeilen hat eine Excel Tabelle in der Version 2007?"]
[null,10000]
[null,65536]
["r",1048576]
[null,"Die Anzahl ist nur durch die Größe des Arbeitsspeichers begrenzt"]
[11,"Was passiert, wenn der Text in einer Zelle länger ist, als die Spalte breit ist?"]
[null,"Excel füllt die Zelle mit \"#####\" aus"]
[null,"Excel läßt nur soviel Zeichen zu, wie in die Zelle passen"]
["r","Excel schreibt über den Zellenrand hinaus, wenn die Nachbarzelle leer ist"]
[null,"Excel bringt die Fehlermeldung #Zelle"]
[12,"Welche Textausrichtung gibt es nicht in Excel?"]
[null,"Senkrecht"]
["r","Spiegelschrift"]
[null,"37 Grad schräg nach oben"]
[null,"37 Grad schräg nach unten"]
[13,"Sie geben ein Datum an als \"3.4.34\". Wie reagiert Excel?"]
[null,"Excel erzeugt eine Fehlermeldung \"Jahreszahlen müssen 4-stellig angegeben werden\""]
["r","Excel interpretiert das Datum als 03.04.1934"]
[null,"Excel interpretiert das Datum als 03.04.2034"]
[null,"Excel läßt die Entscheidung offen"]
[14,"Sie geben 1.3 in eine Zelle ein. Excel schreibt stattdessen 39508,00. Warum?"]
["r","Excel interpretiert die Eingabe als Datum. Da die Zelle bereits mit dem Format \"Zahl\" formatiert war, kommt es zur Anzeige 39508,00"]
[null,"Excel hat sich \"aufgehängt\". Sie müssen Excel beenden und neu starten."]
[null,"Windows hat sich \"aufgehängt\". Sie müssen Windows beenden und neu starten."]
[null,"Das kommt manchmal vor. Wiederholen Sie die Eingabe, bis Excel in Ihrem Sinn reagiert."]
[15,"Sie möchten eine Tabelle im Querformat drucken. Wie gehen Sie vor?"]
["r","Ich wähle die Orientierung \"Querformat\" im Register \"Papierformat\" des Dialogfeldes \"Seite einrichten\""]
[null,"Ich stelle an meinem Drucker \"Querformat\" ein."]
[null,"Das geht in Excel nicht"]
[null,"Ich aktiviere unter Extras - Optionen - Druck das Kontrollkästchen \"Querformat\"."]

{"sheet":"Fragen","index":1,"n_rows":50,"n_cols":35,"rows_kept":50,"cut":false,"hidden":false,"merged":[[0,20,0,34],[8,2,8,16],[9,2,9,16],[4,1,5,1],[4,2,5,16],[6,2,6,16],[7,2,7,16]]}
[null,{"$f":"\"Frage Nr.\" &FrageNr","v":"Frage Nr.1"},null,null,null,null,null,null,null,null,null,null,null,null,null,null,null,null,null,null,"Antworten"]
[null,"Frage",1,2,3,4,5,6,7,8,9,10,11,12,13,14,15,null,1,null,1,2,3,4,5,6,7,8,9,10,11,12,13,14,15]
[null,"Antwort",{"$f":"IF(U3=\"\",\"\",IF(U3<>U4,CHAR(76),CHAR(74)))","v":""},{"$f":"IF(V3=\"\",\"\",IF(V3<>V4,CHAR(76),CHAR(74)))","v":""},"","","","","","","","","","","","",""]
[null,null,null,null,null,null,null,null,null,null,null,null,null,null,null,null,null,null,null,"korr",{"$f":"MATCH(\"r\",OFFSET(INDIRECT(\"Fragebogen!A\"&MATCH(U2,Fragebogen!$A$1:$A$100,0)),,,5),0)-1","v":2},{"$f":"MATCH(\"r\",OFFSET(INDIRECT(\"Fragebogen!A\"&MATCH(V2,Fragebogen!$A$1:$A$100,0)),,,5),0)-1","v":3},{"$f":"MATCH(\"r\",OFFSET(INDIRECT(\"Fragebogen!A\"&MATCH(W2,Fragebogen!$A$1:$A$100,0)),,,5),0)-1","v":1},{"$f":"MATCH(\"r\",OFFSET(INDIRECT(\"Fragebogen!A\"&MATCH(X2,Fragebogen!$A$1:$A$100,0)),,,5),0)-1","v":3},{"$f":"MATCH(\"r\",OFFSET(INDIRECT(\"Fragebogen!A\"&MATCH(Y2,Fragebogen!$A$1:$A$100,0)),,,5),0)-1","v":3},{"$f":"MATCH(\"r\",OFFSET(INDIRECT(\"Fragebogen!A\"&MATCH(Z2,Fragebogen!$A$1:$A$100,0)),,,5),0)-1","v":3},{"$f":"MATCH(\"r\",OFFSET(INDIRECT(\"Fragebogen!A\"&MATCH(AA2,Fragebogen!$A$1:$A$100,0)),,,5),0)-1","v":2},{"$f":"MATCH(\"r\",OFFSET(INDIRECT(\"Fragebogen!A\"&MATCH(AB2,Fragebogen!$A$1:$A$100,0)),,,5),0)-1","v":4},{"$f":"MATCH(\"r\",OFFSET(INDIRECT(\"Fragebogen!A\"&MATCH(AC2,Fragebogen!$A$1:$A$100,0)),,,5),0)-1","v":2},{"$f":"MATCH(\"r\",OFFSET(INDIRECT(\"Fragebogen!A\"&MATCH(AD2,Fragebogen!$A$1:$A$100,0)),,,5),0)-1","v":3},{"$f":"MATCH(\"r\",OFFSET(INDIRECT(\"Fragebogen!A\"&MATCH(AE2,Fragebogen!$A$1:$A$100,0)),,,5),0)-1","v":3},{"$f":"MATCH(\"r\",OFFSET(INDIRECT(\"Fragebogen!A\"&MATCH(AF2,Fragebogen!$A$1:$A$100,0)),,,5),0)-1","v":2},{"$f":"MATCH(\"r\",OFFSET(INDIRECT(\"Fragebogen!A\"&MATCH(AG2,Fragebogen!$A$1:$A$100,0)),,,5),0)-1","v":2},{"$f":"MATCH(\"r\",OFFSET(INDIRECT(\"Fragebogen!A\"&MATCH(AH2,Fragebogen!$A$1:$A$100,0)),,,5),0)-1","v":1},{"$f":"MATCH(\"r\",OFFSET(INDIRECT(\"Fragebogen!A\"&MATCH(AI2,Fragebogen!$A$1:$A$100,0)),,,5),0)-1","v":1}]
[null,{"$f":"FrageNr","v":1},{"$f":"VLOOKUP(FrageNr,Fragebogen!A1:B100,2,0)","v":"In wieviele Teile kann man ein Fenster teilen?"}]
[]
[null,null,{"$f":"INDEX(Fragebogen!$B$1:$B$100,MATCH(FrageNr,Fragebogen!$A$1:$A$100,0)+ROW(A1))","v":2}]
[null,null,{"$f":"INDEX(Fragebogen!$B$1:$B$100,MATCH(FrageNr,Fragebogen!$A$1:$A$100,0)+ROW(A2))","v":4}]
[null,null,{"$f":"INDEX(Fragebogen!$B$1:$B$100,MATCH(FrageNr,Fragebogen!$A$1:$A$100,0)+ROW(A3))","v":16}]
[null,null,{"$f":"INDEX(Fragebogen!$B$1:$B$100,MATCH(FrageNr,Fragebogen!$A$1:$A$100,0)+ROW(A4))","v":"Ein Fenster kann man nicht teilen"}]
[]
[]
[null,null,null,{"$f":"IF(COUNTBLANK(C3:Q3)=15,\"\",HYPERLINK(\"#Antworten\",\"Klick\"))","v":""},null,null,{"$f":"IF(COUNTIF($C$3:$Q$3,CHAR(74))+COUNTIF($C$3:$Q$3,CHAR(76))=0,\"\",COUNTIF($C$3:$Q$3,CHAR(74))/(COUNTIF($C$3:$Q$3,CHAR(74))+COUNTIF($C$3:$Q$3,CHAR(76))))","v":""},{"$f":"IF(COUNTIF($C$3:$Q$3,CHAR(74))+COUNTIF($C$3:$Q$3,CHAR(76))=0,\"\",\"richtige Antworten\")","v":""}]
[]
[]
[]
[]
[]
[]
[]
[]
[]
[]
[]
[]
[]
[]
[]
[]
[]
[]
[]
[]
[]
[]
[]
[]
[]
[]
[]
[]
[]
[]
[]
[]
[]
[]
[]
[]
[1]